bitfinex/quotes_BTCUSD_20241223
["timestamp","ask_amount","ask_price","bid_price","bid_amount"]
[1734974983052,0.213103,93851.0,93832.0,0.09446597]
[1734974983206,0.213128,93841.0,93832.0,0.09446597]
[1734974983633,0.213128,93840.0,93832.0,0.09446597]
[1734974983835,0.213128,93840.0,93825.0,0.40209294]
[1734974983836,0.213128,93840.0,93829.0,0.213153]
[1734974984035,0.2557536,93840.0,93832.0,0.002]
[1734974984237,0.213131,93839.0,93832.0,0.002]
[1734974984661,0.213141,93835.0,93832.0,0.002]
[1734974984868,0.21314,93835.0,93832.0,0.002]
[1734974985200,0.213156,93828.0,93822.0,0.000171]
[1734974985398,0.213167,93823.0,93822.0,0.000171]
[1734974986657,0.213167,93823.0,93822.0,0.009171]
[1734974987441,0.213167,93823.0,93822.0,0.014171]
[1734974987645,0.0773,93845.0,93822.0,0.014171]
[1734974987840,0.15,93843.0,93822.0,0.014171]
[1734974988119,0.213127,93841.0,93827.0,0.213156]
[1734974988316,0.213131,93839.0,93827.0,0.213156]
[1734974988427,0.213135,93837.0,93823.0,0.213167]
[1734974988631,0.31712132,93837.0,93823.0,0.213167]
[1734974989244,0.31712132,93837.0,93827.0,0.002]
[1734974989448,0.31712132,93837.0,93823.0,0.213167]
[1734974989695,0.10398632,93837.0,93827.0,0.213157]
[1734974989903,0.213131,93839.0,93822.0,0.000171]
[1734974989904,0.0773,93845.0,93825.0,0.213162]
[1734974990075,0.00015923,93848.0,93838.0,0.213131]
[1734974990293,0.10398632,93847.0,93822.0,0.09508833]
[1734974990503,0.213115,93846.0,93827.0,0.003]
[1734974990660,0.00015923,93848.0,93830.0,0.1573068]
[1734974990854,0.00015923,93848.0,93831.0,0.1050519]
[1734974991063,0.00015923,93848.0,93846.0,0.139113]
[1734974991309,0.00015923,93848.0,93831.0,0.10398632]
[1734974991548,0.00015923,93848.0,93846.0,0.213113]
[1734974991744,0.00015923,93848.0,93840.0,0.213126]
[1734974991952,0.00015923,93848.0,93830.0,0.1573068]
[1734974992168,0.21309,93857.0,93829.0,0.213153]
[1734974992426,0.001,93847.0,93829.0,0.00015923]
[1734974992682,0.214113,93847.0,93830.0,0.213151]
[1734974992942,0.10398632,93856.0,93829.0,0.00015923]
[1734974993174,0.001,93848.0,93829.0,0.00015923]
[1734974993425,0.213134,93838.0,93829.0,0.00015923]
[1734974993752,0.213134,93838.0,93829.0,0.00115923]
[1734974994165,0.213134,93838.0,93829.0,0.00015923]
[1734974994848,0.21309,93857.0,93843.0,0.21312]
[1734974995063,8.56e-05,93858.0,93843.0,0.021312]
[1734974995266,8.56e-05,93858.0,93849.0,0.213106]
[1734974995499,0.21309,93857.0,93846.0,0.213114]
[1734974996104,0.21309,93857.0,93846.0,0.139114]
[1734974996334,8.56e-05,93858.0,93850.0,0.213105]
[1734974996646,8.56e-05,93858.0,93855.0,0.213093]
[1734974997058,8.56e-05,93858.0,93853.0,0.213098]
[1734974997684,8.56e-05,93858.0,93849.0,0.213108]
[1734974998089,8.56e-05,93858.0,93853.0,0.213096]
[1734974998293,0.02140156,93858.0,93849.0,0.213108]
[1734974998487,0.02140156,93858.0,93847.0,0.30757697]
[1734974998488,0.02140156,93858.0,93847.0,0.09446597]
[1734974998644,0.001,93856.0,93847.0,0.09446597]
[1734974999533,0.213094,93855.0,93847.0,0.09446597]
[1734974999708,0.01515509,93854.0,93847.0,0.09446597]
[1734975000197,8.56e-05,93858.0,93848.0,0.21311]
[1734975000398,8.56e-05,93858.0,93856.0,0.21309]
[1734975000620,8.56e-05,93858.0,93857.0,0.00106529]
[1734975000844,8.56e-05,93858.0,93856.0,0.21309]
[1734975001151,8.56e-05,93858.0,93848.0,0.21311]
[1734975001359,8.56e-05,93858.0,93854.0,0.213095]
[1734975001615,8.56e-05,93858.0,93856.0,0.003]
[1734975001963,8.56e-05,93858.0,93857.0,0.002]
[1734975002283,8.56e-05,93858.0,93856.0,0.003]
[1734975002479,8.56e-05,93858.0,93856.0,0.216091]
[1734975002713,8.56e-05,93858.0,93856.0,0.003]
[1734975002906,0.02131616,93857.0,93856.0,0.003]
[1734975003112,0.23440616,93857.0,93856.0,0.003]
[1734975003314,0.42049248,93857.0,93855.0,0.09446597]
[1734975003512,0.10398632,93856.0,93855.0,0.09446597]
[1734975004267,0.10398632,93856.0,93798.0,0.1]
[1734975004268,0.10398632,93856.0,93842.0,0.09446597]
[1734975004474,0.213121,93843.0,93842.0,0.09446597]
[1734975005631,0.213132,93839.0,93824.0,0.30762797]
[1734975005820,0.06336641,93855.0,93824.0,0.09446597]
[1734975006020,0.213149,93831.0,93824.0,0.09446597]
[1734975006689,0.213149,93831.0,93826.0,0.09446597]
[1734975007543,0.213149,93831.0,93829.0,0.00615923]
[1734975008614,0.213149,93831.0,93829.0,0.00915923]
[1734975010360,0.213149,93831.0,93829.0,0.00933043]
[1734975010569,0.10398632,93830.0,93829.0,0.00933043]
[1734975010777,0.25992775,93830.0,93829.0,0.00933043]
[1734975011406,0.25992775,93830.0,93829.0,0.00333043]
[1734975011600,0.25992775,93830.0,93829.0,0.00033043]
[1734975011806,0.25992775,93830.0,93829.0,0.00333043]
[1734975012891,0.25992775,93830.0,93829.0,0.01033043]
[1734975013526,0.213149,93831.0,93829.0,0.01033043]
[1734975013736,0.213142,93835.0,93829.0,0.01033043]
[1734975013936,0.213149,93831.0,93829.0,0.01033043]
[1734975014149,0.213142,93835.0,93829.0,0.01033043]
[1734975014359,0.213142,93835.0,93829.0,0.00733043]
[1734975014562,0.213149,93831.0,93829.0,0.00033043]
[1734975014774,0.213149,93831.0,93829.0,0.00333043]
[1734975014983,0.213141,93835.0,93829.0,0.00333043]
[1734975014984,0.213124,93843.0,93829.0,0.00333043]
[1734975015195,0.213108,93849.0,93830.0,0.10598355]
[1734975015416,0.02131616,93857.0,93840.0,0.10491792]
[1734975015417,0.213104,93851.0,93840.0,0.10491792]
[1734975015634,0.213104,93851.0,93836.0,0.213136]
[1734975016064,0.213096,93855.0,93829.0,0.00633043]
[1734975016065,0.20890424,93850.0,93829.0,0.00633043]
[1734975016262,0.20890424,93850.0,93812.0,0.44935593]
[1734975016263,0.213167,93823.0,93819.0,0.02752417]
[1734975016467,0.426336,93823.0,93819.0,0.02752417]
[1734975016673,0.21318,93817.0,93816.0,0.000171]
[1734975016907,0.31716632,93817.0,93816.0,0.000171]
[1734975017108,0.39151655,93817.0,93816.0,0.000171]
[1734975018304,0.31716632,93817.0,93816.0,0.000171]
[1734975018509,0.21318,93817.0,93816.0,0.000171]
[1734975018761,0.0817,93835.0,93816.0,0.000171]
[1734975018762,0.213171,93822.0,93816.0,0.000171]
[1734975019102,0.213145,93833.0,93816.0,0.000171]
[1734975019299,0.001,93817.0,93816.0,0.000171]
[1734975019906,0.0224165,93817.0,93816.0,0.000171]
[1734975020105,0.001,93817.0,93816.0,0.000171]
[1734975020926,0.213165,93824.0,93816.0,0.000171]
[1734975021697,0.0001712,93823.0,93816.0,0.000171]
[1734975021852,0.0001712,93823.0,93817.0,0.21318]
[1734975022241,0.0001712,93823.0,93816.0,0.000171]
[1734975022651,0.04264872,93822.0,93816.0,0.213352]
[1734975022921,0.0001712,93823.0,93816.0,0.213352]
[1734975023177,0.0001712,93823.0,93816.0,0.000171]
[1734975023386,0.213179,93818.0,93817.0,0.009]
[1734975023592,0.31716532,93818.0,93817.0,0.009]
[1734975023794,0.31716532,93818.0,93816.0,0.000171]
[1734975023976,0.18633427,93817.0,93816.0,0.000171]
[1734975024871,0.30933427,93817.0,93816.0,0.000171]
[1734975025077,0.55933427,93817.0,93816.0,0.000171]
[1734975025290,0.64243427,93817.0,93816.0,1e-06]
[1734975026148,0.54243427,93817.0,93816.0,1e-06]
[1734975026361,0.33808632,93817.0,93816.0,1e-06]
[1734975027932,0.001,93817.0,93816.0,1e-06]
[1734975032614,0.10498632,93817.0,93816.0,1e-06]
[1734975033548,0.001,93817.0,93816.0,1e-06]
[1734975034172,0.12642074,93817.0,93816.0,1e-06]
[1734975034593,0.001,93817.0,93816.0,1e-06]
[1734975034789,0.0011712,93817.0,93816.0,1e-06]
[1734975036474,0.10515752,93817.0,93816.0,1e-06]
[1734975037338,0.40195752,93817.0,93816.0,1e-06]
[1734975037544,0.30195752,93817.0,93816.0,1e-06]
[1734975037794,0.33605499,93817.0,93816.0,1e-06]
[1734975038018,0.10515752,93817.0,93816.0,1e-06]
[1734975041521,0.37815752,93817.0,93816.0,1e-06]
[1734975041942,0.55685752,93817.0,93816.0,1e-06]
[1734975042153,0.60475752,93817.0,93816.0,1e-06]
[1734975042764,0.50475752,93817.0,93816.0,1e-06]
[1734975042993,0.69788499,93817.0,93816.0,1e-06]
[1734975043199,0.59788499,93817.0,93816.0,1e-06]
[1734975043851,0.59788499,93817.0,93797.0,0.000171]
[1734975043852,0.541724,93798.0,93797.0,0.000171]
[1734975044063,0.541724,93798.0,93797.0,0.00070277]
[1734975044064,0.64571032,93798.0,93797.0,0.00070277]
[1734975044321,0.74328135,93798.0,93797.0,0.00070277]
[1734975044523,0.54571032,93798.0,93797.0,0.00070277]
[1734975044740,0.39571032,93798.0,93797.0,0.00070277]
[1734975044957,0.31721032,93798.0,93797.0,0.00070277]
[1734975046052,0.32421032,93798.0,93797.0,0.00070277]
[1734975046466,0.007,93798.0,93797.0,0.00070277]
[1734975048328,0.0290208,93798.0,93797.0,0.00070277]
[1734975049180,0.13300712,93798.0,93797.0,0.00070277]
[1734975049786,0.21320712,93798.0,93797.0,0.00070277]
[1734975052804,0.36320712,93798.0,93797.0,0.00070277]
[1734975053488,0.36311461,93798.0,93797.0,0.00070277]
[1734975054364,0.11089381,93798.0,93797.0,0.00070277]
[1734975054573,0.00690749,93798.0,93797.0,0.00070277]
[1734975055898,0.00690749,93798.0,93797.0,0.00176884]
[1734975056157,0.00690749,93798.0,93797.0,0.25575516]
[1734975056383,0.00690749,93798.0,93797.0,0.28769806]
[1734975056631,0.00690749,93798.0,93797.0,0.15070277]
[1734975056876,0.213194,93812.0,93798.0,0.15]
[1734975057108,0.0001712,93817.0,93799.0,0.213221]
[1734975057376,0.213187,93814.0,93803.0,0.213212]
[1734975057609,0.213206,93806.0,93797.0,0.35142631]
[1734975058125,0.213217,93801.0,93797.0,0.35242631]
[1734975058362,0.213217,93801.0,93800.0,0.35072354]
[1734975058606,0.26625813,93801.0,93800.0,0.35072354]
[1734975059049,0.26625813,93801.0,93797.0,0.2393137]
[1734975059050,0.213217,93801.0,93797.0,0.00170277]
[1734975059184,0.213217,93801.0,93797.0,0.00070277]
[1734975059645,0.213208,93805.0,93797.0,0.00070277]
[1734975059864,0.426439,93800.0,93797.0,0.00070277]
[1734975060098,0.213224,93798.0,93797.0,0.00070277]
[1734975060331,0.31721032,93798.0,93797.0,0.00070277]
[1734975061063,0.46721032,93798.0,93797.0,0.00070277]
[1734975061783,0.10398632,93798.0,93797.0,0.00070277]
[1734975062015,0.213221,93800.0,93797.0,0.00070277]
[1734975062204,0.10598632,93798.0,93797.0,0.00070277]
[1734975062609,0.25598632,93798.0,93797.0,0.00070277]
[1734975062963,0.25398632,93798.0,93797.0,0.00070277]
[1734975063435,0.25898632,93798.0,93797.0,0.00070277]
[1734975065832,0.26098632,93798.0,93797.0,0.00070277]
[1734975066657,0.46688632,93798.0,93797.0,0.00070277]
[1734975066877,0.56688632,93798.0,93797.0,0.00070277]
[1734975068396,0.2,93786.0,93785.0,7.7e-07]
[1734975068572,0.45398632,93786.0,93785.0,7.7e-07]
[1734975068782,0.52238495,93786.0,93785.0,0.00016036]
[1734975069891,0.2,93782.0,93781.0,9.6e-07]
[1734975070098,0.47698632,93782.0,93781.0,9.6e-07]
[1734975070329,0.413274,93776.0,93775.0,3.6e-07]
[1734975070532,0.69026032,93776.0,93775.0,3.6e-07]
[1734975071795,0.2,93765.0,93764.0,7.6e-07]
[1734975072140,0.313342,93746.0,93745.0,0.0001712]
[1734975072259,0.59032832,93746.0,93745.0,0.0001712]
[1734975072453,0.56732832,93746.0,93745.0,0.0001712]
[1734975072721,0.46732832,93746.0,93745.0,0.0001712]
[1734975073484,0.10498632,93746.0,93745.0,0.0091712]
[1734975073683,0.001,93746.0,93745.0,0.0091712]
[1734975074310,0.001,93746.0,93745.0,0.01023774]
[1734975074511,0.001,93746.0,93745.0,0.01816685]
[1734975074744,0.001,93746.0,93745.0,0.27215317]
[1734975074954,0.001,93746.0,93745.0,0.63012374]
[1734975074955,0.002,93746.0,93745.0,0.63012374]
[1734975075162,0.00045643,93746.0,93745.0,0.67172434]
[1734975075375,0.000171,93798.0,93749.0,0.1]
[1734975075593,0.00015933,93786.0,93783.0,0.426513]
[1734975076076,0.00015933,93786.0,93784.0,0.00907818]
[1734975076495,0.00015933,93786.0,93784.0,0.01699954]
[1734975076697,0.00015933,93786.0,93785.0,0.213253]
[1734975077121,0.001171,93798.0,93790.0,0.213241]
[1734975077537,0.002171,93798.0,93786.0,0.213251]
[1734975077734,0.002171,93798.0,93791.0,0.00907818]
[1734975077940,0.001171,93798.0,93791.0,0.01699954]
[1734975078382,0.001171,93798.0,93791.0,0.00792136]
[1734975078564,0.001171,93798.0,93788.0,0.00792136]
[1734975078763,0.14791712,93798.0,93788.0,0.00792136]
[1734975078966,0.15,93794.0,93788.0,0.00792136]
[1734975079170,0.10398632,93793.0,93787.0,0.00792136]
[1734975079429,0.213242,93790.0,93787.0,0.1029482]
[1734975079639,0.213246,93788.0,93787.0,0.1029482]
[1734975079861,0.54160275,93788.0,93787.0,0.1029482]
[1734975080061,0.54160275,93788.0,93787.0,0.09502684]
[1734975080245,0.32835675,93788.0,93763.0,0.09502684]
[1734975080454,0.213289,93770.0,93763.0,0.09518617]
[1734975080659,0.426578,93770.0,93763.0,0.09518617]
[1734975080862,0.213289,93770.0,93763.0,0.09518617]
[1734975081239,0.213289,93770.0,93763.0,0.00015933]
[1734975081661,0.21329,93769.0,93763.0,0.00015933]
[1734975082003,0.213294,93767.0,93763.0,0.00515933]
[1734975082364,0.42656,93774.0,93763.0,0.00515933]
[1734975082542,0.213283,93772.0,93763.0,0.00515933]
[1734975082767,0.213297,93766.0,93763.0,0.00515933]
[1734975082925,0.213301,93764.0,93763.0,0.00515933]
[1734975083130,0.37034575,93764.0,93763.0,0.00515933]
[1734975083339,0.37034575,93764.0,93763.0,0.00915933]
[1734975083617,0.37034575,93764.0,93763.0,0.00015933]
[1734975083806,0.37034575,93764.0,93763.0,0.00524483]
[1734975084011,0.37034575,93764.0,93763.0,0.01424483]
[1734975084214,0.37034575,93764.0,93763.0,0.00924483]
[1734975084584,0.37034575,93764.0,93763.0,0.01424483]
[1734975084812,0.37034575,93764.0,93763.0,0.00524483]
[1734975085062,0.31728732,93764.0,93763.0,0.00524483]
[1734975085776,0.69028732,93764.0,93763.0,0.00524483]
[1734975085978,0.76858732,93764.0,93763.0,0.00524483]
[1734975086245,0.76858732,93764.0,93763.0,0.01424483]
[1734975086510,0.76858732,93764.0,93763.0,8.3e-07]
[1734975086736,0.87162575,93764.0,93763.0,8.3e-07]
[1734975087146,0.563342,93746.0,93733.0,0.09502684]
[1734975087348,0.69032832,93746.0,93733.0,0.09502684]
[1734975087764,0.46732832,93746.0,93733.0,0.09502684]
[1734975088172,0.46732832,93746.0,93723.0,0.213393]
[1734975088173,0.46732832,93746.0,93718.0,0.09502684]
[1734975088580,0.46832832,93746.0,93745.0,0.0081712]
[1734975089426,0.46932832,93746.0,93745.0,0.0171712]
[1734975091281,0.59232832,93746.0,93745.0,0.0171712]
[1734975092085,0.49232832,93746.0,93745.0,0.0171712]
[1734975092285,0.79631464,93746.0,93745.0,0.0171712]
[1734975093489,0.59631464,93746.0,93745.0,0.0171712]
[1734975093703,0.46932832,93746.0,93745.0,0.0171712]
[1734975094334,0.25598632,93746.0,93745.0,0.0171712]
[1734975094508,0.10598632,93746.0,93745.0,0.0171712]
[1734975094941,0.10598632,93746.0,93745.0,0.03700803]
[1734975095070,0.13791795,93746.0,93745.0,0.03700803]
[1734975095311,0.10398632,93746.0,93745.0,0.03700803]
[1734975095898,0.213313,93759.0,93745.0,0.03700803]
[1734975096128,0.10398632,93758.0,93750.0,0.213331]
[1734975096369,0.0001712,93763.0,93754.0,0.213322]
[1734975096563,0.10398632,93762.0,93746.0,0.00908531]
[1734975096770,0.10398632,93762.0,93747.0,0.21334]
[1734975096979,0.213308,93761.0,93751.0,0.00793447]
[1734975097191,0.10398632,93760.0,93751.0,0.00793447]
[1734975097393,0.001,93758.0,93751.0,0.00793447]
[1734975097609,0.10398632,93757.0,93752.0,0.00793447]
[1734975097787,0.10398632,93757.0,93752.0,0.05139306]
[1734975098217,0.213322,93755.0,93752.0,0.05139306]
[1734975098421,0.10398632,93754.0,93753.0,0.05139306]
[1734975098825,0.25398632,93754.0,93753.0,0.05139306]
[1734975099031,0.25398632,93754.0,93752.0,0.007]
[1734975099032,0.363326,93753.0,93752.0,0.007]
[1734975099339,0.46731232,93753.0,93752.0,0.007]
[1734975099829,0.46731232,93753.0,93752.0,0.02683845]
[1734975100006,0.56680775,93753.0,93752.0,0.02683845]
[1734975100224,0.56680775,93753.0,93752.0,0.01983845]
[1734975100428,0.66680775,93753.0,93752.0,0.01983845]
[1734975100655,0.76780775,93753.0,93752.0,0.02883845]
[1734975100827,0.86780775,93753.0,93752.0,0.02883845]
[1734975101447,0.54531232,93753.0,93752.0,0.009]
[1734975101757,0.76831232,93753.0,93752.0,0.016]
[1734975101895,0.76931232,93753.0,93752.0,0.016]
[1734975102285,0.76083239,93753.0,93752.0,0.016]
[1734975103877,0.46083239,93753.0,93752.0,0.016]
[1734975104085,0.25598632,93753.0,93752.0,0.016]
[1734975104285,0.32434895,93753.0,93752.0,0.016]
[1734975104696,0.25598632,93753.0,93752.0,0.016]
[1734975105535,0.10598632,93753.0,93752.0,0.016]
[1734975105737,0.002,93753.0,93752.0,0.016]
[1734975107202,0.19828894,93780.0,93762.0,0.213306]
[1734975107409,0.10398632,93779.0,93767.0,0.213293]
[1734975107620,0.06887306,93779.0,93767.0,0.213293]
[1734975107851,0.06887306,93779.0,93763.0,0.01986511]
[1734975108047,0.213235,93793.0,93769.0,0.21329]
[1734975108258,0.0784,93794.0,93769.0,0.21329]
[1734975108259,0.10398632,93792.0,93769.0,0.21329]
[1734975108463,0.10398632,93792.0,93770.0,0.01986511]
[1734975108464,0.213259,93783.0,93770.0,0.01986511]
[1734975108677,0.15,93781.0,93770.0,0.03690977]
[1734975108882,0.151,93779.0,93770.0,0.03690977]
[1734975109087,0.151,93779.0,93771.0,0.01986511]
[1734975109088,0.15,93772.0,93771.0,0.01986511]
[1734975109302,0.45398632,93772.0,93771.0,0.17183975]
[1734975109506,0.45398632,93772.0,93771.0,0.17978399]
[1734975109710,0.45398632,93772.0,93771.0,0.15081846]
[1734975110125,0.47698632,93772.0,93771.0,0.15081846]
[1734975110331,0.413285,93771.0,93770.0,0.009]
[1734975110537,0.69027132,93771.0,93770.0,0.009]
[1734975111364,0.363326,93753.0,93745.0,0.09553545]
[1734975111576,0.46731232,93753.0,93745.0,0.09553545]
[1734975111781,0.5072304,93753.0,93745.0,0.09553545]
[1734975111989,0.5072304,93753.0,93745.0,0.0001712]
[1734975112812,0.5072304,93753.0,93752.0,0.00915948]
[1734975113022,0.5302304,93753.0,93752.0,0.00915948]
[1734975113279,0.6302304,93753.0,93752.0,0.01515948]
[1734975113444,0.7302304,93753.0,93752.0,0.01515948]
[1734975113848,0.586342,93746.0,93745.0,6.8e-07]
[1734975114080,0.81592832,93746.0,93745.0,6.8e-07]
[1734975114948,0.81592832,93746.0,93745.0,0.00900068]
[1734975115141,0.81592832,93746.0,93745.0,0.01500068]
[1734975115363,0.81592832,93746.0,93745.0,6.8e-07]
[1734975115601,0.81592832,93746.0,93735.0,0.0001712]
[1734975115602,0.413365,93736.0,93735.0,2e-07]
[1734975115800,0.69035132,93736.0,93735.0,2e-07]
[1734975116779,0.59035132,93736.0,93735.0,2e-07]
[1734975116981,0.49135132,93736.0,93735.0,0.0090002]
[1734975117769,0.56182245,93736.0,93735.0,0.0090002]
[1734975118457,0.66182245,93736.0,93735.0,0.0090002]
[1734975118656,0.66282245,93736.0,93735.0,0.0170002]
[1734975119076,0.56282245,93736.0,93735.0,0.0170002]
[1734975119465,0.46935132,93736.0,93735.0,0.0170002]
[1734975119920,0.25598632,93736.0,93735.0,0.0170002]
[1734975120313,0.43731132,93736.0,93735.0,0.0170002]
[1734975120582,0.002,93736.0,93735.0,0.0170002]
[1734975121001,0.21333,93752.0,93735.0,0.23833589]
[1734975121206,0.31731732,93751.0,93735.0,0.27555561]
[1734975121409,0.10398632,93751.0,93736.0,0.213365]
[1734975121615,0.181293,93750.0,93736.0,0.213365]
[1734975121837,0.213337,93748.0,93736.0,0.213365]
[1734975122054,0.15738473,93770.0,93736.0,0.213365]
[1734975122055,0.213305,93763.0,93746.0,0.21334]
[1734975122266,0.001,93752.0,93742.0,0.213351]
[1734975122481,0.20263389,93765.0,93737.0,0.08058806]
[1734975122692,0.09517289,93765.0,93745.0,0.09536425]
[1734975122917,0.001,93750.0,93749.0,0.293335]
[1734975123125,0.001,93752.0,93749.0,0.50667]
[1734975123341,0.00015951,93772.0,93770.0,0.213287]
[1734975123559,0.00015951,93772.0,93771.0,0.0426587]
[1734975123759,0.00015951,93772.0,93770.0,0.213287]
[1734975123973,0.0762,93821.0,93764.0,0.2133]
[1734975123974,0.05220079,93821.0,93778.0,0.213269]
[1734975124186,0.09499669,93820.0,93790.0,0.15738473]
[1734975124405,0.09499669,93820.0,93802.0,0.213212]
[1734975124587,0.213187,93814.0,93791.0,0.02371322]
[1734975124828,0.0005322,93821.0,93800.0,0.15738473]
[1734975125251,0.0005322,93821.0,93817.0,0.213179]
[1734975125704,0.0005322,93821.0,93817.0,0.426359]
[1734975125918,0.0005322,93821.0,93819.0,0.213176]
[1734975126142,0.0015322,93821.0,93818.0,0.00912043]
[1734975126353,0.0015322,93821.0,93819.0,0.23750023]
[1734975126596,0.0015322,93821.0,93820.0,0.00912043]
[1734975126821,0.0025322,93821.0,93820.0,0.00912043]
[1734975127037,0.0005322,93821.0,93820.0,0.00912043]
[1734975127256,0.0005322,93821.0,93820.0,0.50313468]
[1734975128330,0.29822136,93821.0,93820.0,0.36045956]
[1734975128508,0.32022136,93821.0,93820.0,0.36045956]
[1734975128757,0.52022136,93821.0,93820.0,0.36045956]
[1734975128958,0.52022136,93821.0,93820.0,0.35733913]
[1734975129187,0.52022136,93821.0,93820.0,0.35833913]
[1734975129418,0.52022136,93821.0,93783.0,0.03175242]
[1734975129419,0.1,93807.0,93805.0,0.09506827]
[1734975129632,0.71019132,93806.0,93805.0,0.09506827]
[1734975130068,0.49019132,93806.0,93805.0,0.09506827]
[1734975130282,0.25398632,93806.0,93785.0,0.09506827]
[1734975130732,0.15,93804.0,93787.0,0.213247]
[1734975131162,0.15,93802.0,93799.0,0.09506827]
[1734975131586,0.15,93802.0,93796.0,0.14260241]
[1734975131587,0.15,93802.0,93800.0,0.14260241]
[1734975131792,0.213217,93801.0,93800.0,0.14260241]
[1734975132217,0.15,93800.0,93799.0,0.0950494]
[1734975132443,0.25398632,93800.0,93799.0,0.0950494]
[1734975132844,0.15,93798.0,93794.0,0.0950494]
[1734975133070,0.21323,93795.0,93794.0,0.0950494]
[1734975133293,0.31721632,93795.0,93794.0,0.0950494]
[1734975133622,0.31721632,93795.0,93788.0,0.1902335]
[1734975133623,0.10398632,93795.0,93788.0,0.0950494]
[1734975133828,0.213244,93789.0,93788.0,0.0950494]
[1734975134033,0.37027685,93789.0,93788.0,0.0950494]
[1734975134235,0.37027685,93789.0,93786.0,0.14260241]
[1734975134436,0.363249,93787.0,93786.0,0.14260241]
[1734975134652,0.37698632,93787.0,93786.0,0.14260241]
[1734975134935,0.69023532,93787.0,93786.0,0.14260241]
[1734975135155,0.213269,93778.0,93777.0,0.09510177]
[1734975135376,0.25398632,93778.0,93777.0,0.09510177]
[1734975135604,0.15,93789.0,93777.0,0.09510177]
[1734975135833,0.001,93787.0,93786.0,0.007]
[1734975136042,0.213242,93790.0,93773.0,0.213279]
[1734975136250,0.213242,93790.0,93777.0,0.004]
[1734975136470,0.21322,93800.0,93783.0,0.213256]
[1734975136686,0.213224,93798.0,93783.0,0.213256]
[1734975136918,0.31720632,93800.0,93783.0,0.213256]
[1734975137140,0.15,93799.0,93783.0,0.426512]
[1734975137519,0.15,93799.0,93788.0,0.213246]
[1734975137754,0.15,93799.0,93780.0,0.213265]
[1734975137755,0.21805895,93799.0,93780.0,0.213265]
[1734975138179,0.21323,93796.0,93791.0,0.09510177]
[1734975138386,0.213233,93794.0,93791.0,0.09510177]
[1734975138619,0.213237,93792.0,93791.0,0.09510177]
[1734975138826,0.31722332,93792.0,93791.0,0.09510177]
[1734975139038,0.53046132,93792.0,93787.0,0.09510177]
[1734975139248,0.213242,93790.0,93787.0,0.09510177]
[1734975139478,0.213246,93788.0,93787.0,0.09510177]
[1734975139689,0.15,93796.0,93783.0,0.213257]
[1734975139887,0.10398632,93795.0,93783.0,0.213257]
[1734975140092,0.21323,93795.0,93782.0,0.09510177]
[1734975140395,0.234553,93795.0,93782.0,0.09510177]
[1734975140604,0.002,93794.0,93783.0,0.213258]
[1734975140803,0.002,93794.0,93785.0,0.213253]
[1734975141020,0.00015956,93804.0,93784.0,0.09510177]
[1734975141223,0.00015956,93804.0,93785.0,0.04509682]
[1734975141433,0.00015956,93804.0,93794.0,0.213232]
[1734975142282,0.001,93795.0,93794.0,0.213232]
[1734975143248,0.00115956,93804.0,93794.0,0.213232]
[1734975143463,0.00115956,93804.0,93794.0,0.214232]
[1734975143621,0.00015956,93804.0,93794.0,0.214232]
[1734975143981,0.00015956,93804.0,93800.0,0.213219]
[1734975144213,0.00015956,93804.0,93801.0,0.0427451]
[1734975144336,0.00015956,93804.0,93802.0,0.213215]
[1734975144540,0.00015956,93804.0,93803.0,0.10398632]
[1734975144762,0.00015956,93804.0,93803.0,0.10505232]
[1734975144957,0.00015956,93804.0,93803.0,0.35505232]
[1734975145303,0.0001712,93857.0,93853.0,0.213099]
[1734975145478,0.0001712,93857.0,93853.0,0.426198]
[1734975145678,0.0007033,93857.0,93853.0,0.4475079]
[1734975145955,0.0007033,93857.0,93840.0,0.079]
[1734975146105,0.0007033,93857.0,93848.0,0.213109]
[1734975146655,0.213092,93856.0,93853.0,0.003]
[1734975146865,0.213092,93856.0,93854.0,0.09480347]
[1734975147066,0.21187772,93856.0,93854.0,0.1038481]
[1734975147277,0.0007033,93857.0,93854.0,0.1038481]
[1734975147704,0.0007033,93857.0,93855.0,0.00904463]
[1734975148261,0.2137953,93857.0,93856.0,0.00904463]
[1734975148461,0.0007033,93857.0,93856.0,0.00904463]
[1734975150627,0.0007033,93857.0,93856.0,0.01304463]
[1734975150757,0.0007033,93857.0,93856.0,0.02752784]
[1734975151363,0.0007033,93857.0,93856.0,0.37672795]
[1734975151563,0.213076,93864.0,93856.0,0.37672795]
[1734975151764,0.21323553,93864.0,93856.0,0.37672795]
[1734975151966,0.00015953,93864.0,93857.0,0.23661784]
[1734975152218,0.213042,93879.0,93859.0,0.213085]
[1734975152422,0.213064,93869.0,93858.0,0.02352784]
[1734975152851,0.213064,93869.0,93862.0,0.09456797]
[1734975153010,0.10398632,93878.0,93862.0,0.09456797]
[1734975153216,0.213058,93872.0,93862.0,0.09456797]
[1734975153413,0.213058,93872.0,93861.0,0.09456797]
[1734975153619,0.213058,93872.0,93863.0,0.02352784]
[1734975154218,0.213058,93872.0,93864.0,0.00904463]
[1734975154655,0.213048,93876.0,93864.0,0.00904463]
[1734975154881,0.213045,93877.0,93865.0,0.00904463]
[1734975155078,0.0001712,93890.0,93865.0,0.00904463]
[1734975155286,0.10398632,93889.0,93865.0,0.00904463]
[1734975155539,0.10398632,93889.0,93866.0,0.00904463]
[1734975155967,0.10398632,93889.0,93867.0,0.00904463]
[1734975156113,0.10398632,93889.0,93868.0,0.213065]
[1734975156315,0.10398632,93889.0,93869.0,0.213062]
[1734975156518,0.213025,93886.0,93869.0,0.213062]
[1734975156794,0.001,93889.0,93868.0,0.00904463]
[1734975157001,0.0001712,93890.0,93880.0,0.15]
[1734975157135,0.001,93889.0,93887.0,0.15]
[1734975157341,0.001,93889.0,93888.0,0.31807029]
[1734975157536,0.0001712,93890.0,93888.0,0.31700532]
[1734975157965,0.0001712,93890.0,93889.0,0.00904463]
[1734975158166,0.0001712,93890.0,93889.0,0.11303095]
[1734975158397,0.0001712,93898.0,93890.0,0.213015]
[1734975158568,0.0001712,93898.0,93891.0,0.46806328]
[1734975158779,0.00033061,93898.0,93897.0,0.212999]
[1734975159111,0.00033061,93898.0,93893.0,0.213006]
[1734975159315,0.00033061,93898.0,93892.0,0.02352784]
[1734975159532,8.55e-05,93910.0,93895.0,0.213003]
[1734975159975,0.212972,93909.0,93895.0,0.213003]
[1734975160178,8.55e-05,93910.0,93896.0,0.00904463]